Workbook

Sheet Intro
A1: Multi, intro hold
E3: 1 | F3: 2 | G3: 3 | H3: 4 | I3: 5 | J3: 6 | K3: 7 | L3: 8 | M3: 9 | N3: 10 | O3: 11 | P3: 12 | Q3: 13 | R3: 14 | S3: 15 | T3: 16 | V3: Total | X3: Placering
A5: Marlene Henneberg - J.O Henneberg | E5: 12.21 | F5: 10.08 | G5: 14.02 | H5: 10.14 | I5: 10.34 | J5: 6.69 | K5: 11.64 | L5: 3.86 | M5: 6.68 | N5: 11.89 | O5: 9.13 | P5: 9.69 | Q5: 7.84 | R5: 5.54 | S5: 7.33 | T5: 13.54 | V5: =AVERAGE(E5:T5) -> 9.41375 | X5: 11
A6: Jesper Bechsgaard - Anders Handberg Sørensen | E6: 8.65 | F6: 8.87 | G6: 10.34 | H6: 15.37 | I6: 7.3 | J6: 8.13 | K6: 9.27 | L6: 9.09 | M6: 9.89 | N6: 3.61 | O6: 7.04 | P6: 5.61 | Q6: 9.22 | R6: 2.52 | S6: 7.27 | T6: 16.53 | V6: =AVERAGE(E6:T6) -> 8.669375 | X6: 15
A8: Emil Jepsen - Dennis Bilde | E8: 2.75 | F8: 6.79 | G8: 9.66 | H8: 9.86 | I8: 7.5 | J8: 10.92 | K8: 15.37 | L8: 12.03 | M8: 12.01 | N8: 13.31 | O8: 11.74 | P8: 8.45 | Q8: 14.43 | R8: 9.43 | S8: 9.48 | T8: 19.51 | V8: =AVERAGE(E8:T8) -> 10.8275 | X8: 3
A9: Martin Klausen - Palle Jensen | E9: 6.51 | F9: 6.32 | G9: 5.98 | H9: 4.63 | I9: 4.89 | J9: 11.62 | K9: 7.55 | L9: 6.53 | M9: 10.11 | N9: 8.38 | O9: 8.45 | P9: 11.87 | Q9: 13.08 | R9: 6.03 | S9: 10.98 | T9: 3.69 | V9: =AVERAGE(E9:T9) -> 7.91375 | X9: 16
A11: Morten Stege - Nils Mønsted | E11: 11.16 | F11: 15.5 | G11: 14.05 | H11: 8.78 | I11: 9.66 | J11: 11.87 | K11: 4.63 | L11: 13.47 | M11: 3.54 | N11: 15.78 | O11: 8.47 | P11: 5.13 | Q11: 2.22 | R11: 14.52 | S11: 10.52 | T11: 16.31 | V11: =AVERAGE(E11:T11) -> 10.350625 | X11: 6
A12: Preben Taasti - Benny Maruart | E12: 8.17 | F12: 15.72 | G12: 10.25 | H12: 7.25 | I12: 12.7 | J12: 13.31 | K12: 12.45 | L12: 7.97 | M12: 6.73 | N12: 4.11 | O12: 10.68 | P12: 9.65 | Q12: 5.82 | R12: 16.13 | S12: 9.02 | T12: 0.49 | V12: =AVERAGE(E12:T12) -> 9.403125 | X12: 12
A14: H K Sørensen - Niels Henriksen | E14: 12.06 | F14: 9 | G14: 16.75 | H14: 14.33 | I14: 9.66 | J14: 12.89 | K14: 10.73 | L14: 16.14 | M14: 9.89 | N14: 6.69 | O14: 9.32 | P14: 14.87 | Q14: 14.86 | R14: 8.2 | S14: 11.03 | T14: 13.25 | V14: =AVERAGE(E14:T14) -> 11.854375 | X14: 2
A15: Søren Caspersen - Emil Buus Thomsen | E15: 1.76 | F15: 8.48 | G15: 9.52 | H15: 6.91 | I15: 8.27 | J15: 15.11 | K15: 8.36 | L15: 10.91 | M15: 7.97 | N15: 11.62 | O15: 11.53 | P15: 10.35 | Q15: 8.52 | R15: 10.18 | S15: 10.17 | T15: 9.26 | V15: =AVERAGE(E15:T15) -> 9.3075 | X15: 13
A17: Camilla Bo Krefeld - Johan Hammelev | E17: 18.24 | F17: 11 | G17: 8.81 | H17: 15.53 | I17: 14.21 | J17: 14.32 | K17: 9.55 | L17: 17.1 | M17: 13.32 | N17: 16.39 | O17: 11.55 | P17: 11.55 | Q17: 17.78 | R17: 3.87 | S17: 9.83 | T17: 6.75 | V17: =AVERAGE(E17:T17) -> 12.4875 | X17: 1
A18: Lida Hulgaard - Øjvind Hulgaard | E18: 7.94 | F18: 11.52 | G18: 15.12 | H18: 4.4 | I18: 12.39 | J18: 14.39 | K18: 9.14 | L18: 16.29 | M18: 10.11 | N18: 8.11 | O18: 8.26 | P18: 8.13 | Q18: 14.18 | R18: 5.48 | S18: 8.97 | T18: 10.74 | V18: =AVERAGE(E18:T18) -> 10.323125 | X18: 7
A20: Stig Andersen - Ricardo Mirasola | E20: 8.84 | F20: 4.28 | G20: 3.25 | H20: 13.09 | I20: 5.79 | J20: 5.61 | K20: 12.18 | L20: 13.74 | M20: 5.35 | N20: 18.64 | O20: 10.87 | P20: 14.39 | Q20: 5.57 | R20: 13.97 | S20: 12.73 | T20: 6.46 | V20: =AVERAGE(E20:T20) -> 9.6725 | X20: 8
A21: Lars Peter Damgaard - Jørgen Pabst | E21: 11.83 | F21: 4.5 | G21: 10.48 | H21: 5.67 | I21: 7.61 | J21: 5.68 | K21: 2.41 | L21: 14.82 | M21: 13.65 | N21: 10.32 | O21: 12.96 | P21: 10.31 | Q21: 6.92 | R21: 10.57 | S21: 12.67 | T21: 3.47 | V21: =AVERAGE(E21:T21) -> 8.991875 | X21: 14
A23: Morten Bilde - Søren Cilleborg Bilde | E23: 13.49 | F23: 13.21 | G23: 5.95 | H23: 12.75 | I23: 11.73 | J23: 7.11 | K23: 10.45 | L23: 3.71 | M23: 6.35 | N23: 1.36 | O23: 14.89 | P23: 11.91 | Q23: 12.16 | R23: 17.48 | S23: 9.03 | T23: 2.13 | V23: =AVERAGE(E23:T23) -> 9.606875 | X23: 10
A24: Jens Kofoed - Johanne Bilde Kofoed | E24: 17.25 | F24: 13.68 | G24: 9.75 | H24: 11.22 | I24: 10.34 | J24: 4.89 | K24: 10.86 | L24: 2.9 | M24: 14.65 | N24: 9.68 | O24: 11.73 | P24: 8.06 | Q24: 10.78 | R24: 14.46 | S24: 11.32 | T24: 10.97 | V24: =AVERAGE(E24:T24) -> 10.78375 | X24: 4
A26: Jørgen Cilleborg Hansen - Steen Schou | E26: 7.79 | F26: 11.13 | G26: 11.19 | H26: 15.6 | I26: 10.34 | J26: 4.89 | K26: 7.82 | L26: 5.18 | M26: 16.46 | N26: 15.89 | O26: 5.11 | P26: 11.94 | Q26: 11.48 | R26: 11.8 | S26: 10.97 | T26: 9.03 | V26: =AVERAGE(E26:T26) -> 10.41375 | X26: 5
A27: Arne Skyum - Lars Ugilt Jensen | E27: 11.35 | F27: 9.91 | G27: 4.88 | H27: 4.47 | I27: 15.11 | J27: 9.08 | K27: 17.59 | L27: 6.26 | M27: 13.27 | N27: 4.22 | O27: 8.27 | P27: 8.09 | Q27: 5.14 | R27: 9.82 | S27: 8.68 | T27: 17.87 | V27: =AVERAGE(E27:T27) -> 9.625625 | X27: 9
A44: Øjvind Hulgaard - Jesper Gad
A45: Niels Krøjgaard - Henrik Caspersen - H C Graversen

Sheet RR1
A1: Multi, RR1
E3: 1 | F3: 2 | G3: 3 | H3: 4 | I3: 5 | J3: 6 | K3: 7 | L3: 8 | M3: 9 | N3: 10 | O3: 11 | P3: 12 | Q3: 13 | R3: 14 | T3: Total | U3: Placering
A5: Lars Peter Damgaard - Jørgen Pabst | E5: 7.32 | F5: 9.84 | G5: 10.89 | H5: 12.43 | I5: 15.37 | J5: 8.87 | K5: 9.01 | L5: 4.97 | M5: 5.79 | N5: 8.48 | O5: 7.74 | P5: 4.71 | Q5: 7.46 | R5: 7.54 | T5: =AVERAGE(E5:R5) -> 8.601428571 | U5: 13
A6: Preben Taasti - Benny Maruart | E6: 12.45 | F6: 11.61 | G6: 6.49 | H6: 6.67 | I6: 10.38 | J6: 7.52 | K6: 10.83 | L6: 2.27 | M6: 10.38 | N6: 12.2 | O6: 13.44 | P6: 15.21 | Q6: 5.13 | R6: 12.76 | T6: =AVERAGE(E6:R6) -> 9.81 | U6: 10
A8: Emil Jepsen - Dennis Bilde | E8: 18.34 | F8: 9.99 | G8: 9.11 | H8: 13.33 | I8: 16.27 | J8: 18.46 | K8: 16.2 | L8: 10.09 | M8: 6.06 | N8: 12.39 | O8: 7.25 | P8: 10.03 | Q8: 11.84 | R8: 15.27 | T8: =AVERAGE(E8:R8) -> 12.47357143 | U8: 1
A9: Morten Bilde - Søren Cilleborg Bilde | E9: 17.02 | F9: 14.75 | G9: 13.51 | H9: 7.57 | I9: 17.25 | J9: 13.37 | K9: 4.3 | L9: 17.69 | M9: 1.96 | N9: 8.32 | O9: 8.4 | P9: 5.44 | Q9: 15.79 | R9: 12.67 | T9: =AVERAGE(E9:R9) -> 11.28857143 | U9: 5
A11: Lida Hulgaard - Øjvind Hulgaard | E11: 11.47 | F11: 11.33 | G11: 11.36 | H11: 11.53 | I11: 9.62 | J11: 11.13 | K11: 15.7 | L11: 9.91 | M11: 10.96 | N11: 13.19 | O11: 10.39 | P11: 5.94 | Q11: 8.13 | R11: 3.9 | T11: =AVERAGE(E11:R11) -> 10.32571429 | U11: 9
A12: Jesper Bechsgaard - Anders Handberg Sørensen | E12: 7.19 | F12: 4.43 | G12: 11.3 | H12: 6.72 | I12: 4.63 | J12: 12.48 | K12: 3.8 | L12: 2.31 | M12: 13.23 | N12: 13.63 | O12: 7.38 | P12: 6.29 | Q12: 10.76 | R12: 8.17 | T12: =AVERAGE(E12:R12) -> 8.022857143 | U12: 14
A14: Morten Stege - Nils Mønsted | E14: 7.76 | F14: 13.43 | G14: 11.99 | H14: 1.66 | I14: 4.6 | J14: 9.85 | K14: 10.99 | L14: 17.73 | M14: 18.04 | N14: 7.61 | O14: 9.91 | P14: 13.71 | Q14: 15.22 | R14: 15.63 | T14: =AVERAGE(E14:R14) -> 11.295 | U14: 4
A15: Camilla Bo Krefeld - Johan Hammelev | E15: 8.22 | F15: 13.8 | G15: 9.79 | H15: 10.73 | I15: 10.73 | J15: 10.57 | K15: 9.27 | L15: 15.03 | M15: 13.94 | N15: 11.68 | O15: 12.62 | P15: 14.06 | Q15: 19.47 | R15: 8.75 | T15: =AVERAGE(E15:R15) -> 12.04714286 | U15: 2
A17: Søren Caspersen - Emil Buus Thomsen | E17: 12.24 | F17: 6.2 | G17: 15.44 | H17: 16.06 | I17: 7.17 | J17: 4.37 | K17: 7.03 | L17: 7.74 | M17: 9.62 | N17: 11.52 | O17: 12.75 | P17: 14.56 | Q17: 11.87 | R17: 11.83 | T17: =AVERAGE(E17:R17) -> 10.6 | U17: 7
A18: Jens Kofoed - Johanne Bilde Kofoed | E18: 11.78 | F18: 6.57 | G18: 13.18 | H18: 7.95 | I18: 7.33 | J18: 11.53 | K18: 11.65 | L18: 7.63 | M18: 14.21 | N18: 7.8 | O18: 11.6 | P18: 9.97 | Q18: 9.24 | R18: 16.1 | T18: =AVERAGE(E18:R18) -> 10.46714286 | U18: 8
A20: Jørgen Cilleborg Hansen - Steen Schou | E20: 8.53 | F20: 15.57 | G20: 10.21 | H20: 18.34 | I20: 12.67 | J20: 15.63 | K20: 6.94 | L20: 12.13 | M20: 6.74 | N20: 13.48 | O20: 6.56 | P20: 15.29 | Q20: 8.16 | R20: 7.33 | T20: =AVERAGE(E20:R20) -> 11.25571429 | U20: 6
A21: H K Sørensen - Niels Henriksen | E21: 12.81 | F21: 8.67 | G21: 8.01 | H21: 9.27 | I21: 12.83 | J21: 8.47 | K21: 12.51 | L21: 17.15 | M21: 13.17 | N21: 5.25 | O21: 12.26 | P21: 4.79 | Q21: 4.21 | R21: 4.73 | T21: =AVERAGE(E21:R21) -> 9.580714286 | U21: 11
A23: Stig Andersen - Ricardo Mirasola | E23: 1.66 | F23: 5.25 | G23: 8.7 | H23: 8.47 | I23: 9.27 | J23: 10.15 | K23: 12.97 | L23: 12.37 | M23: 6.83 | N23: 6.52 | O23: 13.2 | P23: 13.3 | Q23: 12.54 | R23: 7.24 | T23: =AVERAGE(E23:R23) -> 9.176428571 | U23: 12
A24: Marlene Henneberg - J.O Henneberg | E24: 2.98 | F24: 10.01 | G24: 8.64 | H24: 13.28 | I24: 15.4 | J24: 9.43 | K24: 8.35 | L24: 12.26 | M24: 13.26 | N24: 14.75 | O24: 13.3 | P24: 13.2 | Q24: 14.87 | R24: 12.46 | T24: =AVERAGE(E24:R24) -> 11.585 | U24: 3
A26: Martin Klausen - Palle Jensen | E26: 12.68 | F26: 8.39 | G26: 6.82 | H26: 3.94 | I26: 2.75 | J26: 1.54 | K26: 13.06 | L26: 2.85 | M26: 6.77 | N26: 6.81 | Q26: 4.78 | R26: 11.25 | T26: =AVERAGE(E26:R26) -> 6.803333333 | U26: 15
A27: Ole Elmegaard Mortensen - Per Ebdrup | E27: 7.55 | F27: 10.16 | G27: 4.56 | H27: 12.05 | I27: 3.73 | J27: 6.63 | K27: 7.49 | L27: 7.87 | M27: 9.04 | N27: 6.37 | Q27: 0.53 | R27: 4.37 | T27: =AVERAGE(E27:R27) -> 6.695833333 | U27: 16

Sheet Imp Par
A1: IMP Par
B4: R1-4 på Realbridge | F4: R5 | G4: R6 | H4: R7 | I4: R8 | J4: R9 | K4: R10 | L4: R11 | M4: R12 | N4: R13 | O4: R14 | P4: R15 | Q4: Sum | R4: Placering
A5: Stig Andersen - Ricardo Mirasola | Q5: 154.4 | R5: 1
A6: Emil Jepsen - Dennis Bilde | Q6: 99 | R6: 2
A7: Jesper Bechsgaard - Anders Handberg Sørensen | Q7: 87.6 | R7: 3
A8: Morten Bilde - Søren Cilleborg Bilde | Q8: 73.4 | R8: 4
A9: Morten Stege - Nils Mønsted | Q9: 28.6 | R9: 5
A10: Camilla Bo Krefeld - Johan Hammelev | Q10: 17.9 | R10: 6
A11: Marlene Henneberg - J.O Henneberg | Q11: 1.7 | R11: 7
A12: Lars Peter Damgaard - Jørgen Pabst | Q12: -3.3 | R12: 8
A13: H K Sørensen - Niels Henriksen | Q13: -13.3 | R13: 9
A14: Jørgen Cilleborg Hansen - Steen Schou | Q14: -26.6 | R14: 10
A15: Jens Kofoed - Johanne Bilde Kofoed | Q15: -32.6 | R15: 11
A16: Martin Klausen - Palle Jensen | Q16: -44.2 | R16: 12
A17: Søren Caspersen - Emil Buus Thomsen | Q17: -49.1 | R17: 13
A18: Preben Taasti - Benny Maruart | Q18: -79.3 | R18: 14
A19: Lida Hulgaard - Øjvind Hulgaard | Q19: -99.4 | R19: 15
A20: Ole Elmegaard Mortensen - Per Ebdrup | Q20: -105.6 | R20: 16
B22: =SUM(B6:B21) -> 0 | C22: =SUM(C6:C21) -> 0 | D22: =SUM(D6:D21) -> 0 | E22: =SUM(E5:E20) -> 0 | F22: =SUM(F6:F21) -> 0 | G22: =SUM(G6:G21) -> 0 | H22: 0 | I22: =SUM(I5:I20) -> 0 | J22: 0 | K22: 0 | L22: 0 | M22: 0 | N22: 0 | O22: 0 | P22: 0 | Q22: =SUM(Q5:Q20) -> 9.2
A25: OBS pga. udfordringer med data fra sidste aften kan de enkelte aftener ikke tastes - men summen stemmer siger LP :)

Sheet RR2
A1: Multi, RR2
E3: 1 | F3: 2 | G3: 3 | H3: 4 | I3: 5 | J3: 6 | K3: 7 | L3: 8 | M3: 9 | N3: 10 | O3: 11 | P3: 12 | Q3: 13 | R3: 14 | T3: Total | U3: Placering
A5: Lars Peter Damgaard - Jørgen Pabst | E5: 6.52 | F5: 11.15 | G5: 9.02 | H5: 15.39 | I5: 8.23 | J5: 9.95 | K5: 10.81 | L5: 12.83 | M5: 9.89 | N5: 10.6 | O5: 3.63 | P5: 6.62 | Q5: 12.5 | R5: 1.76 | T5: =AVERAGE(E5:R5) -> 9.207142857 | U5: 13
A6: Preben Taasti - Benny Maruart | E6: 7.21 | F6: 12.23 | G6: 8.55 | H6: 10.02 | I6: 9.73 | J6: 7.14 | K6: 6.38 | L6: 16.62 | M6: 11.3 | N6: 16.53 | O6: 9.04 | P6: 11.5 | Q6: 9.48 | R6: 5.01 | T6: =AVERAGE(E6:R6) -> 10.05285714 | U6: 9
A8: Emil Jepsen - Dennis Bilde | E8: 14.05 | F8: 14.3 | G8: 8.4 | H8: 12.68 | I8: 16.32 | J8: 17.57 | K8: 10.75 | L8: 15.62 | M8: 17.19 | N8: 13.84 | O8: 16.37 | P8: 8.5 | Q8: 6.33 | R8: 13.35 | T8: =AVERAGE(E8:R8) -> 13.23357143 | U8: 1
A9: Morten Bilde - Søren Cilleborg Bilde | E9: 8.74 | F9: 9.77 | G9: 1.39 | H9: 15.28 | I9: 15.59 | J9: 12.6 | K9: 7.94 | L9: 15.6 | M9: 8.49 | N9: 12.28 | O9: 10.96 | P9: 13.38 | Q9: 4.64 | R9: 10.26 | T9: =AVERAGE(E9:R9) -> 10.49428571 | U9: 6
A11: Lida Hulgaard - Øjvind Hulgaard | E11: 2.81 | F11: 7.15 | G11: 11.6 | H11: 4.72 | I11: 8.89 | J11: 8.89 | K11: 9.19 | L11: 3.38 | M11: 9.07 | N11: 5.65 | O11: 5.61 | P11: 6.82 | Q11: 3.26 | R11: 5.78 | T11: =AVERAGE(E11:R11) -> 6.63 | U11: 14
A12: Jesper Bechsgaard - Anders Handberg Sørensen | E12: 6.66 | F12: 5.54 | G12: 18.61 | H12: 7.32 | I12: 12 | J12: 16.86 | K12: 13.62 | L12: 7.17 | M12: 17 | N12: 6.53 | O12: 6.32 | P12: 4.5 | Q12: 1.85 | R12: 13.5 | T12: =AVERAGE(E12:R12) -> 9.82 | U12: 11
A14: Morten Stege - Nils Mønsted | E14: 11.26 | F14: 5.7 | G14: 12.46 | H14: 4.86 | I14: 9.63 | J14: 4.46 | K14: 17.05 | L14: 4.17 | M14: 3 | N14: 14.35 | O14: 14.82 | P14: 9.58 | Q14: 10.52 | R14: 18.24 | T14: =AVERAGE(E14:R14) -> 10.00714286 | U14: 10
A15: Camilla Bo Krefeld - Johan Hammelev | E15: 5.95 | F15: 10.23 | G15: 7.25 | H15: 9.69 | I15: 4.29 | J15: 10.28 | K15: 15.49 | L15: 6.08 | M15: 10.93 | N15: 13.47 | O15: 15.65 | P15: 13.98 | Q15: 7.5 | R15: 14.99 | T15: =AVERAGE(E15:R15) -> 10.41285714 | U15: 8
A17: Søren Caspersen - Emil Buus Thomsen | E17: 14.94 | F17: 10.05 | G17: 10.98 | H17: 9.98 | I17: 15.71 | J17: 15.54 | K17: 11.63 | L17: 8.92 | M17: 11.51 | N17: 6.16 | O17: 11.6 | P17: 14.47 | Q17: 18.15 | R17: 14.22 | T17: =AVERAGE(E17:R17) -> 12.41857143 | U17: 2
A18: Jens Kofoed - Johanne Bilde Kofoed | E18: 14.17 | F18: 15.11 | G18: 11.45 | H18: 4.61 | I18: 10.37 | J18: 9.72 | K18: 5.95 | L18: 7.07 | M18: 2.81 | N18: 7.7 | O18: 16.88 | P18: 7.5 | Q18: 16.74 | R18: 6.5 | T18: =AVERAGE(E18:R18) -> 9.755714286 | U18: 12
A20: Jørgen Cilleborg Hansen - Steen Schou | E20: 12.79 | F20: 8.85 | G20: 12.75 | H20: 15.14 | I20: 3.68 | J20: 7.4 | K20: 14.05 | L20: 11.08 | M20: 12.34 | N20: 9.83 | O20: 13.68 | P20: 13.18 | Q20: 13.73 | R20: 16.95 | T20: =AVERAGE(E20:R20) -> 11.81785714 | U20: 3
A21: H K Sørensen - Niels Henriksen | E21: 13.48 | F21: 7.77 | G21: 7.54 | H21: 10.31 | I21: 4.41 | J21: 2.43 | K21: 8.37 | L21: 12.93 | M21: 11.69 | N21: 6.34 | O21: 14.39 | P21: 15.5 | Q21: 17.03 | R21: 15.56 | T21: =AVERAGE(E21:R21) -> 10.55357143 | U21: 7
A23: Stig Andersen - Ricardo Mirasola | E23: 17.19 | F23: 14.46 | G23: 14.49 | H23: 15.57 | I23: 11.77 | J23: 12.86 | K23: 2.95 | L23: 13.92 | M23: 7.66 | N23: 13.66 | O23: 3.12 | P23: 5.53 | Q23: 13.67 | R23: 9.74 | T23: =AVERAGE(E23:R23) -> 11.185 | U23: 5
A24: Marlene Henneberg - J.O Henneberg | E24: 13.34 | F24: 12.85 | G24: 15.83 | H24: 18.71 | I24: 10.27 | J24: 10.05 | K24: 4.51 | L24: 15.83 | M24: 8.31 | N24: 10.17 | O24: 8.4 | P24: 12.5 | Q24: 15.36 | R24: 6.65 | T24: =AVERAGE(E24:R24) -> 11.62714286 | U24: 4
A26: Martin Klausen - Palle Jensen | E26: 5.83 | F26: 9.95 | G26: 5.51 | H26: 1.29 | I26: 11.11 | J26: 3.14 | K26: 12.06 | L26: 4.38 | M26: 10.11 | N26: 3.47 | O26: 4.35 | P26: 10.42 | Q26: 6.27 | R26: 4.44 | T26: =AVERAGE(E26:R26) -> 6.595 | U26: 15
A27: Ole Elmegaard Mortensen - Per Ebdrup | E27: 5.06 | F27: 4.89 | G27: 4.17 | H27: 4.43 | I27: 8 | J27: 11.11 | K27: 9.25 | L27: 4.4 | M27: 8.7 | N27: 9.4 | O27: 5.18 | P27: 6.02 | Q27: 2.97 | R27: 3.05 | T27: =AVERAGE(E27:R27) -> 6.187857143 | U27: 16

Sheet Hold i alt
A1: Klub 32 - Hold 2021/2022
B5: RR1 | C5: RR2 | D5: Total | E5: Placering
A6: Dennis Bilde | B6: 93.25 | C6: 95.49 | D6: =SUM(B6:C6) -> 188.74 | E6: 1
A7: Malene Henneberg | B7: 83.81 | C7: 89.8 | D7: 173.61 | E7: 2
A8: Steen Schou | B8: 81.85 | C8: 91.66 | D8: 173.51 | E8: 3
A9: Jens Kofoed | B9: 79.86 | C9: 88.1 | D9: 167.96 | E9: 4
A10: Nils Mønsted | B10: 95.05 | C10: 71.57 | D10: 166.62 | E10: 5
A11: Lars Peter Damgaard | B11: 54.4 | C11: 64.71 | D11: 119.11 | E11: 6
A12: Lida Hulgaard | B12: 51 | C12: 42.81 | D12: 93.81 | E12: 7
A13: Martin Klausen | B13: 28.53 | C13: 15.86 | D13: 44.39 | E13: 8
A16: OBS i kamp 6 som desværre blev aflyst for Melene/Martin er Malene noteret for 17,75 kp (gennemsnittet af hvad øvrige hold opnåede mod Martin) - Martin noteret for 10 Kp da også dette hold var uden skyld i aflysningen

Sheet Slutspil
A1: SLUTSPIL
E4: 1 | F4: 2 | G4: 3 | H4: 4 | I4: 5 | J4: 6 | K4: 7 | L4: 8 | N4: Total | O4: Placering
A6: Lars Peter Damgaard - Jørgen Pabst | E6: 8.25 | F6: 15.38 | G6: 5.42 | H6: 3.21 | I6: 15.62 | J6: 15.22 | K6: 9.38 | L6: 13.55 | N6: =AVERAGE(E6:L6) -> 10.75375 | O6: 6
A7: Preben Taasti - Benny Maruart | E7: 9.5 | F7: 12.21 | G7: 9.19 | H7: 5.67 | I7: 14.08 | J7: 11.28 | K7: 14.96 | L7: 14.76 | N7: =AVERAGE(E7:L7) -> 11.45625 | O7: 4
A9: Emil Jepsen - Dennis Bilde | E9: 11.55 | F9: 9.31 | G9: 18.37 | H9: 9.35 | I9: 13.13 | J9: 11.38 | K9: 8.91 | L9: 11.94 | N9: =AVERAGE(E9:L9) -> 11.7425 | O9: 2
A10: Morten Bilde - Søren Cilleborg Bilde | E10: 13.33 | F10: 14.43 | G10: 12.31 | H10: 5.26 | I10: 10.46 | J10: 9.72 | K10: 6.89 | L10: 14.89 | N10: 10.91125 | O10: 5
A12: Lida Hulgaard - Øjvind Hulgaard | E12: 11.75 | F12: 7.79 | G12: 14.58 | H12: 14.33 | I12: 8.45 | J12: 5.43 | K12: 7.36 | L12: 12.9 | N12: =AVERAGE(E12:L12) -> 10.32375 | O12: 8
A13: Jesper Bechsgaard - Anders Handberg Sørensen | E13: 10.5 | F13: 4.62 | G13: 10.81 | H13: 16.79 | I13: 4.97 | J13: 9.36 | K13: 10.83 | L13: 9.55 | N13: 9.67875 | O13: 10
A15: Morten Stege - Nils Mønsted | E15: 8.59 | F15: 10.81 | G15: 10.2 | H15: 16.79 | I15: 11.55 | J15: 10.64 | K15: 12.64 | L15: 10.45 | N15: =AVERAGE(E15:L15) -> 11.45875 | O15: 3
A16: Camilla Bo Krefeld - Johan Hammelev | E16: 14.08 | F16: 10.52 | G16: 17.6 | H16: 11.21 | I16: 15.03 | J16: 14.57 | K16: 9.17 | L16: 7.1 | N16: 12.41 | O16: 1
A18: Søren Caspersen - Emil Buus Thomsen | E18: 11.58 | F18: 6 | G18: 13.89 | H18: 7.03 | I18: 6.87 | J18: 10.28 | K18: 13.11 | L18: 8.06 | N18: =AVERAGE(E18:L18) -> 9.6025 | O18: 11
A19: Jens Kofoed - Johanne Bilde Kofoed | E19: 9.13 | F19: 8.23 | G19: 8.77 | H19: 14.25 | I19: 9.54 | J19: 8.62 | K19: 11.09 | L19: 5.11 | N19: 9.3425 | O19: 12
A21: Jørgen Cilleborg Hansen - Steen Schou | E21: 8.42 | F21: 11.77 | G21: 6.11 | H21: 5.75 | I21: 12.53 | J21: 13.41 | K21: 9.64 | L21: 6.55 | N21: =AVERAGE(E21:L21) -> 9.2725 | O21: 13
A22: H K Sørensen - Niels Henriksen | E22: 10.87 | F22: 14 | G22: 11.23 | H22: 12.97 | I22: 7.93 | J22: 11.77 | K22: 5.51 | L22: 11.64 | N22: 10.74 | O22: 7
A24: Stig Andersen - Ricardo Mirasola | E24: 6.67 | F24: 10.69 | G24: 1.63 | H24: 14.74 | I24: 12.07 | J24: 6.59 | K24: 14.49 | L24: 13.45 | N24: =AVERAGE(E24:L24) -> 10.04125 | O24: 9
A25: Marlene Henneberg - J.O Henneberg | E25: 8.45 | F25: 5.57 | G25: 7.69 | H25: 10.65 | I25: 7.47 | J25: 8.23 | K25: 10.36 | L25: 8.36 | N25: 8.3475 | O25: 14
A27: Martin Klausen - Palle Jensen | E27: 5.92 | F27: 9.19 | G27: 2.4 | H27: 3.21 | I27: 4.38 | J27: 8.72 | K27: 5.04 | L27: 6.45 | N27: =AVERAGE(E27:L27) -> 5.66375 | O27: 16
A28: Ole Elmegaard Mortensen - Per Ebdrup | E28: 11.41 | F28: 9.48 | G28: 9.8 | H28: 8.79 | I28: 5.92 | J28: 4.78 | K28: 10.62 | L28: 5.24 | N28: 8.255 | O28: 15

Sheet Par
A1: Par
A2: Resultater fra Realbridge
B3: 1.aften | C3: 2.aften | D3: 3.aften | E3: 4.aften | F3: 5.aften | H3: Sum | I3: gennemsnit | K3: Placering
B4: 24.03.2022 | C4: 31.03.2022 | D4: 07.04.2022 | E4: 21.04.2022 | F4: 28.04.2022
A5: Camilla Bo Krefeld - Johan Hammelev | B5: 0.618 | E5: 0.592 | F5: 0.466 | H5: =SUM(B5:G5) -> 1.676 | I5: =AVERAGE(B5:F5) -> 0.5586666667 | K5: 1
A6: H K Sørensen - Niels Henriksen | B6: 0.563 | C6: 0.583 | D6: 0.504 | E6: 0.434 | F6: 0.602 | H6: =SUM(B6:G6) -> 2.686 | I6: =AVERAGE(B6:F6) -> 0.5372 | K6: 2
A7: Søren Caspersen - Emil Buus Thomsen | B7: 0.545 | C7: 0.47 | D7: 0.544 | E7: 0.607 | F7: 0.51 | H7: =SUM(B7:G7) -> 2.676 | I7: =AVERAGE(B7:F7) -> 0.5352 | K7: 3
A8: Lida Hulgaard - Øjvind Hulgaard | B8: 0.578 | C8: 0.437 | D8: 0.448 | E8: 0.513 | F8: 0.584 | H8: =SUM(B8:G8) -> 2.56 | I8: =AVERAGE(B8:F8) -> 0.512 | K8: 4
A9: Morten Bilde - Søren Cilleborg Bilde | B9: 0.554 | C9: 0.533 | D9: 0.476 | E9: 0.464 | F9: 0.504 | H9: =SUM(B9:G9) -> 2.531 | I9: =AVERAGE(B9:F9) -> 0.5062 | K9: 5
A10: Emil Jepsen - Dennis Bilde | B10: 0.509 | E10: 0.475 | F10: 0.532 | H10: =SUM(B10:G10) -> 1.516 | I10: =AVERAGE(B10:F10) -> 0.5053333333 | K10: 6
A11: Jesper Bechsgaard - Anders Handberg Sørensen | B11: 0.525 | C11: 0.367 | D11: 0.576 | E11: 0.469 | F11: 0.549 | H11: =SUM(B11:G11) -> 2.486 | I11: =AVERAGE(B11:F11) -> 0.4972 | K11: 7
A12: Jens Kofoed - Johanne Bilde Kofoed | B12: 0.469 | C12: 0.583 | D12: 0.496 | E12: 0.541 | F12: 0.384 | H12: =SUM(B12:G12) -> 2.473 | I12: =AVERAGE(B12:F12) -> 0.4946 | K12: 8
A13: Preben Taasti - Benny Maruart | B13: 0.438 | C13: 0.513 | D13: 0.5 | E13: 0.505 | F13: 0.507 | H13: =SUM(B13:G13) -> 2.463 | I13: =AVERAGE(B13:F13) -> 0.4926 | K13: 9
A14: Morten Stege - Nils Mønsted | B14: 0.426 | C14: 0.547 | D14: 0.496 | E14: 0.418 | F14: 0.566 | H14: =SUM(B14:G14) -> 2.453 | I14: =AVERAGE(B14:F14) -> 0.4906 | K14: 10
A15: Stig Andersen - Ricardo Mirasola | B15: 0.42 | C15: 0.473 | D15: 0.564 | E15: 0.559 | F15: 0.417 | H15: =SUM(B15:G15) -> 2.433 | I15: =AVERAGE(B15:F15) -> 0.4866 | K15: 11
A16: Lars Peter Damgaard - Jørgen Pabst | B16: 0.493 | C16: 0.51 | D16: 0.472 | E16: 0.441 | F16: 0.509 | H16: =SUM(B16:G16) -> 2.425 | I16: =AVERAGE(B16:F16) -> 0.485 | K16: 12
A17: Ole Elmegaard Mortensen - Per Ebdrup | B17: 0.476 | C17: 0.52 | D17: 0.512 | E17: 0.462 | F17: 0.423 | H17: =SUM(B17:G17) -> 2.393 | I17: =AVERAGE(B17:F17) -> 0.4786 | K17: 13
A18: Jørgen Cilleborg Hansen - Steen Schou | B18: 0.473 | E18: 0.528 | F18: 0.4 | H18: =SUM(B18:G18) -> 1.401 | I18: =AVERAGE(B18:F18) -> 0.467 | K18: 14
A19: Martin Klausen - Palle Jensen | B19: 0.453 | C19: 0.463 | D19: 0.412 | E19: 0.515 | F19: 0.486 | H19: =SUM(B19:G19) -> 2.329 | I19: =AVERAGE(B19:F19) -> 0.4658 | K19: 15
A20: Marlene Henneberg - J.O Henneberg | B20: 0.462 | E20: 0.477 | F20: 0.448 | H20: =SUM(B20:G20) -> 1.387 | I20: =AVERAGE(B20:F20) -> 0.4623333333 | K20: 16

Sheet Grand prix
A1: Grand prix klub 32 (2021-2022)
F3: Intro hold | G3: RR 1 | H3: IMP1 | I3: RR2 | J3: Slutspil | K3: Par | M3: Total | O3: Placering
A5: Emil Jepsen - Dennis Bilde | F5: =Intro!X8*4 -> 12 | G5: ='RR1'!U8*7 -> 7 | H5: ='Imp Par'!R6*4 -> 8 | I5: ='RR2'!U8*7 -> 7 | J5: =Slutspil!O9*4 -> 8 | K5: =Par!K10*5 -> 30 | M5: =SUM(F5:L5) -> 72 | O5: 1
A6: Camilla Bo Krefeld - Johan Hammelev | F6: =Intro!X17*4 -> 4 | G6: ='RR1'!U15*7 -> 14 | H6: ='Imp Par'!R10*4 -> 24 | I6: ='RR2'!U15*7 -> 56 | J6: =Slutspil!O16*4 -> 4 | K6: =Par!K5*5 -> 5 | M6: =SUM(F6:L6) -> 107 | O6: 2
A7: Morten Bilde - Søren Cilleborg Bilde | F7: =Intro!X23*4 -> 40 | G7: ='RR1'!U9*7 -> 35 | H7: ='Imp Par'!R8*4 -> 16 | I7: ='RR2'!U9*7 -> 42 | J7: =Slutspil!O10*4 -> 20 | K7: =Par!K9*5 -> 25 | M7: =SUM(F7:L7) -> 178 | O7: 3
A8: Morten Stege - Nils Mønsted | F8: =Intro!X11*4 -> 24 | G8: ='RR1'!U14*7 -> 28 | H8: ='Imp Par'!R9*4 -> 20 | I8: ='RR2'!U14*7 -> 70 | J8: =Slutspil!O15*4 -> 12 | K8: =Par!K14*5 -> 50 | M8: =SUM(F8:L8) -> 204 | O8: 4
A9: H K Sørensen - Niels Henriksen | F9: =Intro!X14*4 -> 8 | G9: ='RR1'!U21*7 -> 77 | H9: ='Imp Par'!R13*4 -> 36 | I9: ='RR2'!U21*7 -> 49 | J9: =Slutspil!O22*4 -> 28 | K9: =Par!K6*5 -> 10 | M9: =SUM(F9:L9) -> 208 | O9: 5
A10: Søren Caspersen - Emil Buus Thomsen | F10: =Intro!X15*4 -> 52 | G10: ='RR1'!U17*7 -> 49 | H10: ='Imp Par'!R17*4 -> 52 | I10: ='RR2'!U17*7 -> 14 | J10: =Slutspil!O18*4 -> 44 | K10: =Par!K7*5 -> 15 | M10: =SUM(F10:L10) -> 226 | O10: 6
A11: Jørgen Cilleborg Hansen - Steen Schou | F11: =Intro!X26*4 -> 20 | G11: ='RR1'!U20*7 -> 42 | H11: ='Imp Par'!R14*4 -> 40 | I11: ='RR2'!U20*7 -> 21 | J11: =Slutspil!O21*4 -> 52 | K11: =Par!K18*5 -> 70 | M11: =SUM(F11:L11) -> 245 | O11: 7
A12: Stig Andersen - Ricardo Mirasola | F12: =Intro!X20*4 -> 32 | G12: ='RR1'!U23*7 -> 84 | H12: ='Imp Par'!R5*4 -> 4 | I12: ='RR2'!U23*7 -> 35 | J12: =Slutspil!O24*4 -> 36 | K12: =Par!K15*5 -> 55 | M12: =SUM(F12:L12) -> 246 | O12: 8
A13: Marlene Henneberg - J.O Henneberg | F13: =Intro!X5*4 -> 44 | G13: ='RR1'!U24*7 -> 21 | H13: ='Imp Par'!R11*4 -> 28 | I13: ='RR2'!U24*7 -> 28 | J13: =Slutspil!O25*4 -> 56 | K13: =Par!K20*5 -> 80 | M13: =SUM(F13:L13) -> 257 | O13: 9
A14: Jens Kofoed - Johanne Bilde Kofoed | F14: =Intro!X24*4 -> 16 | G14: ='RR1'!U18*7 -> 56 | H14: ='Imp Par'!R15*4 -> 44 | I14: ='RR2'!U18*7 -> 84 | J14: =Slutspil!O19*4 -> 48 | K14: =Par!K12*5 -> 40 | M14: =SUM(F14:L14) -> 288 | O14: 10
A15: Preben Taasti - Benny Maquart | F15: =Intro!X12*4 -> 48 | G15: ='RR1'!U6*7 -> 70 | H15: ='Imp Par'!R18*4 -> 56 | I15: ='RR2'!U6*7 -> 63 | J15: =Slutspil!O7*4 -> 16 | K15: =Par!K13*5 -> 45 | M15: =SUM(F15:L15) -> 298 | O15: 11
A16: Lida Hulgaard - Øjvind Hulgaard | F16: =Intro!X18*4 -> 28 | G16: ='RR1'!U11*7 -> 63 | H16: ='Imp Par'!R19*4 -> 60 | I16: ='RR2'!U11*7 -> 98 | J16: =Slutspil!O12*4 -> 32 | K16: =Par!K8*5 -> 20 | M16: =SUM(F16:L16) -> 301 | O16: 12
A17: Jesper Bechsgaard - Anders Handberg Sørensen | F17: =Intro!X6*4 -> 60 | G17: ='RR1'!U12*7 -> 98 | H17: ='Imp Par'!R7*4 -> 12 | I17: ='RR2'!U12*7 -> 77 | J17: =Slutspil!O13*4 -> 40 | K17: =Par!K11*5 -> 35 | M17: =SUM(F17:L17) -> 322 | O17: 13
A18: Lars Peter Damgaard - Jørgen Pabst | F18: =Intro!X21*4 -> 56 | G18: ='RR1'!U5*7 -> 91 | H18: ='Imp Par'!R12*4 -> 32 | I18: ='RR2'!U5*7 -> 91 | J18: =Slutspil!O6*4 -> 24 | K18: =Par!K16*5 -> 60 | M18: =SUM(F18:L18) -> 354 | O18: 14
A19: Ole Elmegaard Mortensen - Per Ebdrup | F19: =Intro!X27*4 -> 36 | G19: ='RR1'!U27*7 -> 112 | H19: ='Imp Par'!R20*4 -> 64 | I19: ='RR2'!U27*7 -> 112 | J19: =Slutspil!O28*4 -> 60 | K19: =Par!K17*5 -> 65 | M19: =SUM(F19:L19) -> 449 | O19: 15
A20: Martin Klausen - Palle Jensen | F20: =Intro!X9*4 -> 64 | G20: ='RR1'!U26*7 -> 105 | H20: ='Imp Par'!R16*4 -> 48 | I20: ='RR2'!U26*7 -> 105 | J20: =Slutspil!O27*4 -> 64 | K20: =Par!K19*5 -> 75 | M20: =SUM(F20:L20) -> 461 | O20: 16

Sheet Fremmøde
A1: Fremmøde som samlet par
B3: Introhold | C3: RR1 | D3: Imp | E3: RR2 | F3: Slut | G3: par | I3: Fremmøde% | K3: Fremmøde/antal
A4: Aftener: | B4: 4 | C4: 7 | D4: 4 | E4: 7 | F4: 4 | G4: 4 | K4: 13
B5: Fremmøde
A6: Camilla Bo Krefeld - Johan Hammelev | B6: 4 | C6: 7 | D6: 2 | I6: =SUM(B6:G6)/$K$4% -> 100 | K6: =SUM(B6:G6) -> 13
A7: Marlene Henneberg - J.O Henneberg | B7: 4 | C7: 6 | D7: 2 | I7: 92.30769231 | K7: 12
A8: Stig Andersen - Ricardo Mirasola | B8: 4 | C8: 6 | D8: 2 | I8: 92.30769231 | K8: 12
A9: Martin Klausen - Palle Jensen | B9: 3 | C9: 7 | D9: 2 | I9: 92.30769231 | K9: 12
A10: Lars Peter Damgaard - Jørgen Pabst | B10: 4 | C10: 5 | D10: 2 | I10: 84.61538462 | K10: 11
A11: H K Sørensen - Niels Henriksen | B11: 4 | C11: 5 | D11: 2 | I11: 84.61538462 | K11: 11
A12: Ole Elmegaard Mortensen - Per Ebdrup | B12: 4 | C12: 4 | D12: 2 | I12: 76.92307692 | K12: 10
A13: Jesper Bechsgaard - Anders Handberg Sørensen | B13: 4 | C13: 4 | D13: 2 | I13: 76.92307692 | K13: 10
A14: Preben Taasti - Benny Maruart | B14: 4 | C14: 5 | D14: 0 | I14: 69.23076923 | K14: 9
A15: Jørgen Cilleborg Hansen - Steen Schou | B15: 3 | C15: 5 | D15: 1 | I15: 69.23076923 | K15: 9
A16: Lida Hulgaard - Øjvind Hulgaard | B16: 2 | C16: 4 | D16: 2 | I16: 61.53846154 | K16: 8
A17: Morten Bilde - Søren Cilleborg Bilde | B17: 2 | C17: 5 | D17: 0 | I17: 53.84615385 | K17: 7
A18: Søren Caspersen - Emil Buus Thomsen | B18: 2 | C18: 3 | D18: 2 | I18: 53.84615385 | K18: 7
A19: Jens Kofoed - Johanne Bilde Kofoed | B19: 0 | C19: 5 | D19: 2 | I19: 53.84615385 | K19: 7
A20: Morten Stege - Nils Mønsted | B20: 0 | C20: 5 | D20: 2 | I20: 53.84615385 | K20: 7
A21: Emil Jepsen - Dennis Bilde | B21: 2 | C21: 4 | D21: 0 | I21: 46.15384615 | K21: 6
